[Event "Titled Tuesday Blitz October 11 Late 2022"]
[White "Urazayev, Arystanbek"]
[Black "Tomaszewski, Kacper"]
[WhiteFideId "13709810"]
[BlackFideId "1127373"]
[WhiteElo "2441"]
[BlackElo "2211"]
[Result "1-0"]
[Round "02"]
[TimeControl "180+1"]
[Date "2022.10.12"]
[WhiteClock "0:01:03"]
[BlackClock "0:00:07"]

1. e4 {[%clk 0:03:00]}  e5 {[%clk 0:02:59]} 2. Nf3 {[%clk 0:03:00]}  Nc6 {[%clk 0:03:00]} 3. Bb5 {[%clk 0:03:00]}  Nge7 {[%clk 0:02:59]} 4. Nc3 {[%clk 0:03:00]}  Ng6 {[%clk 0:02:48]} 5. h4 {[%clk 0:02:59]}  d6 {[%clk 0:02:31]} 6. h5 {[%clk 0:02:52]}  Nf4 {[%clk 0:02:29]} 7. d4 {[%clk 0:02:52]}  Bd7 {[%clk 0:01:23]} 8. dxe5 {[%clk 0:02:32]}  dxe5 {[%clk 0:01:09]} 9. Bxc6 {[%clk 0:02:32]}  Bxc6 {[%clk 0:01:08]} 10. Qxd8+ {[%clk 0:02:33]}  Rxd8 {[%clk 0:01:06]} 11. Nxe5 {[%clk 0:02:32]}  Ne6 {[%clk 0:00:47]} 12. Nxc6 {[%clk 0:02:32]}  bxc6 {[%clk 0:00:48]} 13. Be3 {[%clk 0:02:32]}  Bb4 {[%clk 0:00:47]} 14. Ke2 {[%clk 0:02:24]}  Bxc3 {[%clk 0:00:41]} 15. bxc3 {[%clk 0:02:25]}  h6 {[%clk 0:00:36]} 16. Rhd1 {[%clk 0:02:19]}  Ke7 {[%clk 0:00:36]} 17. Bxa7 {[%clk 0:02:14]}  Nf4+ {[%clk 0:00:36]} 18. Kf3 {[%clk 0:02:14]}  Nxh5 {[%clk 0:00:36]} 19. Bc5+ {[%clk 0:02:06]}  Ke6 {[%clk 0:00:36]} 20. Rxd8 {[%clk 0:02:06]}  Rxd8 {[%clk 0:00:36]} 21. a4 {[%clk 0:02:07]}  Nf6 {[%clk 0:00:36]} 22. a5 {[%clk 0:02:08]}  Nd7 {[%clk 0:00:36]} 23. Bd4 {[%clk 0:02:05]}  f6 {[%clk 0:00:34]} 24. a6 {[%clk 0:02:01]}  c5 {[%clk 0:00:34]} 25. Be3 {[%clk 0:02:01]}  Ra8 {[%clk 0:00:34]} 26. Kg4 {[%clk 0:01:49]}  Ne5+ {[%clk 0:00:33]} 27. Kg3 {[%clk 0:01:45]}  Kd6 {[%clk 0:00:29]} 28. Bf4 {[%clk 0:01:38]}  Ra7 {[%clk 0:00:29]} 29. Bxe5+ {[%clk 0:01:29]}  Kxe5 {[%clk 0:00:30]} 30. Kf3 {[%clk 0:01:23]}  g5 {[%clk 0:00:30]} 31. Ke3 {[%clk 0:01:17]}  h5 {[%clk 0:00:30]} 32. g3 {[%clk 0:01:17]}  h4 {[%clk 0:00:30]} 33. f4+ {[%clk 0:01:18]}  Ke6 {[%clk 0:00:29]} 34. gxh4 {[%clk 0:01:17]}  gxh4 {[%clk 0:00:29]} 35. Kf3 {[%clk 0:01:17]}  f5 {[%clk 0:00:24]} 36. e5 {[%clk 0:01:18]}  Kd5 {[%clk 0:00:23]} 37. Kg2 {[%clk 0:01:16]}  c6 {[%clk 0:00:21]} 38. Kh3 {[%clk 0:01:15]}  Ke4 {[%clk 0:00:22]} 39. Ra4+ {[%clk 0:01:15]}  c4 {[%clk 0:00:14]} 40. e6 {[%clk 0:01:12]}  Kxf4 {[%clk 0:00:13]} 41. e7 {[%clk 0:01:08]}  Ra8 {[%clk 0:00:12]} 42. a7 {[%clk 0:01:07]}  Ke3 {[%clk 0:00:10]} 43. e8=Q+ {[%clk 0:01:01]}  Rxe8 {[%clk 0:00:10]} 44. a8=Q {[%clk 0:01:02]}  Rxa8 {[%clk 0:00:10]} 45. Rxa8 {[%clk 0:01:03]}  f4 {[%clk 0:00:11]} 46. Kxh4 {[%clk 0:01:02]}  f3 {[%clk 0:00:11]} 47. Kg3 {[%clk 0:01:02]}  f2 {[%clk 0:00:11]} 48. Re8+ {[%clk 0:01:02]}  Kd2 {[%clk 0:00:12]} 49. Kxf2 {[%clk 0:01:02]}  Kxc3 {[%clk 0:00:08]} 50. Re2 {[%clk 0:01:01]}  c5 {[%clk 0:00:08]} 51. Ke1 {[%clk 0:01:00]}  Kb2 {[%clk 0:00:08]} 52. Kd1 {[%clk 0:01:00]}  c3 {[%clk 0:00:08]} 53. Re8 {[%clk 0:01:01]}  Ka1 {[%clk 0:00:07]} 54. Rb8 {[%clk 0:01:02]}  Ka2 {[%clk 0:00:07]} 55. Rb5 {[%clk 0:01:03]}  c4 {[%clk 0:00:07]} 56. Rc5 {[%clk 0:01:04]}  Ka3 {[%clk 0:00:07]} 57. Rxc4 {[%clk 0:01:03]}  Kb2 {[%clk 0:00:07]} 1-0


[Site "https://www.chess.com"]

[Event "Titled Tuesday Blitz October 11 Late 2022"]
[White "Urbina Perez, Juan Antonio"]
[Black "Gledura, Benjamin"]
[WhiteFideId "2217368"]
[BlackFideId "712779"]
[WhiteElo "2197"]
[BlackElo "2537"]
[Result "0-1"]
[Round "02"]
[TimeControl "180+1"]
[Date "2022.10.12"]
[WhiteClock "0:00:58"]
[BlackClock "0:02:27"]

1. e4 {[%clk 0:03:00]}  Nf6 {[%clk 0:02:55]} 2. e5 {[%clk 0:02:58]}  Nd5 {[%clk 0:02:55]} 3. Nc3 {[%clk 0:02:59]}  Nxc3 {[%clk 0:02:55]} 4. dxc3 {[%clk 0:03:00]}  d6 {[%clk 0:02:55]} 5. exd6 {[%clk 0:03:00]}  cxd6 {[%clk 0:02:56]} 6. Nf3 {[%clk 0:02:59]}  g6 {[%clk 0:02:54]} 7. g3 {[%clk 0:02:59]}  Bg7 {[%clk 0:02:55]} 8. Bg2 {[%clk 0:02:59]}  O-O {[%clk 0:02:55]} 9. O-O {[%clk 0:03:00]}  Nc6 {[%clk 0:02:56]} 10. Re1 {[%clk 0:02:59]}  Bg4 {[%clk 0:02:51]} 11. h3 {[%clk 0:02:59]}  Bd7 {[%clk 0:02:50]} 12. Nd4 {[%clk 0:02:58]}  Rc8 {[%clk 0:02:49]} 13. Kh2 {[%clk 0:02:55]}  Re8 {[%clk 0:02:48]} 14. Bg5 {[%clk 0:02:51]}  Qb6 {[%clk 0:02:47]} 15. Nxc6 {[%clk 0:02:46]}  Bxc6 {[%clk 0:02:46]} 16. Rb1 {[%clk 0:01:34]}  Qxf2 {[%clk 0:02:43]} 17. Re2 {[%clk 0:01:33]}  Qf5 {[%clk 0:02:41]} 18. Bxe7 {[%clk 0:01:28]}  Be5 {[%clk 0:02:32]} 19. Bxd6 {[%clk 0:01:04]}  Bxd6 {[%clk 0:02:29]} 20. Rxe8+ {[%clk 0:01:01]}  Rxe8 {[%clk 0:02:28]} 21. Qxd6 {[%clk 0:01:02]}  Bxg2 {[%clk 0:02:28]} 22. Kxg2 {[%clk 0:00:58]}  Re2+ {[%clk 0:02:27]} 0-1


[Site "https://www.chess.com"]

[Event "Titled Tuesday Blitz October 11 Late 2022"]
[White "Vlassov, Nikolai"]
[Black "Jacobson, Brandon"]
[WhiteFideId "4103360"]
[BlackFideId "30901561"]
[WhiteElo "2324"]
[BlackElo "2451"]
[Result "0-1"]
[Round "02"]
[TimeControl "180+1"]
[Date "2022.10.11"]
[WhiteClock "0:00:02"]
[BlackClock "0:00:59"]

1. e4 {[%clk 0:03:00]}  c5 {[%clk 0:02:59]} 2. c3 {[%clk 0:03:00]}  Nf6 {[%clk 0:02:59]} 3. e5 {[%clk 0:03:00]}  Nd5 {[%clk 0:02:59]} 4. d4 {[%clk 0:03:00]}  cxd4 {[%clk 0:03:00]} 5. cxd4 {[%clk 0:03:00]}  Nc6 {[%clk 0:03:00]} 6. Nc3 {[%clk 0:03:00]}  Nxc3 {[%clk 0:02:59]} 7. bxc3 {[%clk 0:03:01]}  d6 {[%clk 0:03:00]} 8. f4 {[%clk 0:03:01]}  Bf5 {[%clk 0:02:54]} 9. Nf3 {[%clk 0:03:00]}  e6 {[%clk 0:02:52]} 10. Bd3 {[%clk 0:03:00]}  Bxd3 {[%clk 0:02:38]} 11. Qxd3 {[%clk 0:03:01]}  Be7 {[%clk 0:02:38]} 12. O-O {[%clk 0:03:01]}  O-O {[%clk 0:02:39]} 13. Bd2 {[%clk 0:02:58]}  Qa5 {[%clk 0:02:38]} 14. exd6 {[%clk 0:02:41]}  Bxd6 {[%clk 0:02:38]} 15. Ng5 {[%clk 0:02:42]}  Qf5 {[%clk 0:02:37]} 16. Qxf5 {[%clk 0:02:40]}  exf5 {[%clk 0:02:38]} 17. Rfe1 {[%clk 0:02:35]}  Na5 {[%clk 0:02:36]} 18. Re2 {[%clk 0:02:28]}  Nc4 {[%clk 0:02:33]} 19. g3 {[%clk 0:02:23]}  Rac8 {[%clk 0:02:32]} 20. Be1 {[%clk 0:02:20]}  f6 {[%clk 0:02:28]} 21. Ne6 {[%clk 0:02:08]}  Rfe8 {[%clk 0:02:28]} 22. Bf2 {[%clk 0:02:08]}  Nb6 {[%clk 0:02:26]} 23. Rc1 {[%clk 0:02:02]}  Kf7 {[%clk 0:02:23]} 24. Rce1 {[%clk 0:01:54]}  Nd5 {[%clk 0:02:12]} 25. c4 {[%clk 0:01:46]}  Nc3 {[%clk 0:02:13]} 26. Re3 {[%clk 0:01:46]}  Ne4 {[%clk 0:02:13]} 27. d5 {[%clk 0:00:57]}  Rxc4 {[%clk 0:02:12]} 28. Rb3 {[%clk 0:00:40]}  b6 {[%clk 0:02:10]} 29. Be3 {[%clk 0:00:35]}  Rec8 {[%clk 0:02:07]} 30. Nd4 {[%clk 0:00:31]}  g6 {[%clk 0:01:53]} 31. Nb5 {[%clk 0:00:20]}  Bb8 {[%clk 0:01:52]} 32. Ra3 {[%clk 0:00:13]}  Rd8 {[%clk 0:01:07]} 33. Nxa7 {[%clk 0:00:12]}  Rxd5 {[%clk 0:01:07]} 34. Bxb6 {[%clk 0:00:12]}  Rd2 {[%clk 0:01:04]} 35. Be3 {[%clk 0:00:08]}  Rb2 {[%clk 0:01:04]} 36. Rb3 {[%clk 0:00:03]}  Rxb3 {[%clk 0:00:58]} 37. axb3 {[%clk 0:00:03]}  Rc3 {[%clk 0:00:59]} 38. b4 {[%clk 0:00:02]}  Rxe3 {[%clk 0:00:59]} 39. Rxe3 {[%clk 0:00:02]}  Bxa7 {[%clk 0:00:59]} 0-1


[Site "https://www.chess.com"]

[Event "Titled Tuesday Blitz October 11 Late 2022"]
[White "Vovk, Orest"]
[Black "Joubert, Dantelle"]
[WhiteFideId "14113490"]
[BlackFideId "14310813"]
[WhiteElo "2215"]
[BlackElo "1507"]
[Result "1/2-1/2"]
[Round "02"]
[TimeControl "180+1"]
[Date "2022.10.12"]
[WhiteClock "0:00:50"]
[BlackClock "0:00:15"]

1. h4 {[%clk 0:02:56]}  d5 {[%clk 0:02:58]} 2. h5 {[%clk 0:02:55]}  h6 {[%clk 0:02:57]} 3. e4 {[%clk 0:02:52]}  dxe4 {[%clk 0:02:56]} 4. Nc3 {[%clk 0:02:52]}  Nf6 {[%clk 0:02:55]} 5. Qe2 {[%clk 0:02:52]}  Nc6 {[%clk 0:02:49]} 6. Nxe4 {[%clk 0:02:51]}  Nxe4 {[%clk 0:02:42]} 7. Qxe4 {[%clk 0:02:52]}  e5 {[%clk 0:02:41]} 8. Bc4 {[%clk 0:02:51]}  Bd6 {[%clk 0:02:38]} 9. d3 {[%clk 0:02:50]}  Qf6 {[%clk 0:02:31]} 10. Qh4 {[%clk 0:02:46]}  Qxh4 {[%clk 0:02:25]} 11. Rxh4 {[%clk 0:02:47]}  Bf5 {[%clk 0:02:19]} 12. Ne2 {[%clk 0:02:44]}  f6 {[%clk 0:02:14]} 13. Be3 {[%clk 0:02:42]}  a6 {[%clk 0:02:12]} 14. O-O-O {[%clk 0:02:41]}  O-O-O {[%clk 0:02:11]} 15. Ng3 {[%clk 0:02:39]}  Bd7 {[%clk 0:02:10]} 16. Ne4 {[%clk 0:02:37]}  Be7 {[%clk 0:02:08]} 17. Nc5 {[%clk 0:02:36]}  Bf5 {[%clk 0:02:01]} 18. Be6+ {[%clk 0:02:34]}  Bxe6 {[%clk 0:01:58]} 19. Nxe6 {[%clk 0:02:35]}  Rdg8 {[%clk 0:01:57]} 20. Rg4 {[%clk 0:02:35]}  f5 {[%clk 0:01:47]} 21. Rxg7 {[%clk 0:02:32]}  Kd7 {[%clk 0:01:38]} 22. Nc5+ {[%clk 0:02:27]}  Kc8 {[%clk 0:01:34]} 23. Rxg8+ {[%clk 0:02:21]}  Rxg8 {[%clk 0:01:32]} 24. g3 {[%clk 0:02:21]}  f4 {[%clk 0:01:29]} 25. gxf4 {[%clk 0:02:20]}  exf4 {[%clk 0:01:29]} 26. Bxf4 {[%clk 0:02:07]}  Bxc5 {[%clk 0:01:29]} 27. Bxh6 {[%clk 0:02:07]}  Bxf2 {[%clk 0:01:27]} 28. Rf1 {[%clk 0:02:07]}  Bh4 {[%clk 0:01:24]} 29. Rf8+ {[%clk 0:02:03]}  Rxf8 {[%clk 0:01:23]} 30. Bxf8 {[%clk 0:02:04]}  Ne5 {[%clk 0:01:20]} 31. h6 {[%clk 0:02:02]}  Nf7 {[%clk 0:01:02]} 32. Kd1 {[%clk 0:01:50]}  Bf6 {[%clk 0:01:01]} 33. Bg7 {[%clk 0:01:39]}  Bxg7 {[%clk 0:01:00]} 34. hxg7 {[%clk 0:01:40]}  Nh6 {[%clk 0:00:59]} 35. Ke2 {[%clk 0:01:40]}  Kd7 {[%clk 0:00:59]} 36. Ke3 {[%clk 0:01:36]}  Nf5+ {[%clk 0:00:59]} 37. Ke4 {[%clk 0:01:34]}  Nxg7 {[%clk 0:00:59]} 38. Kd5 {[%clk 0:01:33]}  Ne6 {[%clk 0:00:58]} 39. a4 {[%clk 0:01:32]}  c6+ {[%clk 0:00:58]} 40. Ke5 {[%clk 0:01:30]}  Nc7 {[%clk 0:00:55]} 41. c4 {[%clk 0:01:28]}  c5 {[%clk 0:00:49]} 42. d4 {[%clk 0:01:26]}  cxd4 {[%clk 0:00:48]} 43. Kxd4 {[%clk 0:01:26]}  Kc6 {[%clk 0:00:46]} 44. b4 {[%clk 0:01:22]}  Ne6+ {[%clk 0:00:44]} 45. Ke5 {[%clk 0:01:21]}  Ng5 {[%clk 0:00:42]} 46. Kd4 {[%clk 0:01:14]}  Nf3+ {[%clk 0:00:41]} 47. Ke3 {[%clk 0:01:12]}  Ne5 {[%clk 0:00:38]} 48. Kd4 {[%clk 0:01:12]}  Nd7 {[%clk 0:00:37]} 49. c5 {[%clk 0:01:10]}  Nf8 {[%clk 0:00:22]} 50. Kc4 {[%clk 0:01:09]}  Ne6 {[%clk 0:00:21]} 51. b5+ {[%clk 0:01:09]}  axb5+ {[%clk 0:00:20]} 52. axb5+ {[%clk 0:01:10]}  Kc7 {[%clk 0:00:20]} 53. Kd5 {[%clk 0:01:09]}  Nd8 {[%clk 0:00:19]} 54. Ke5 {[%clk 0:01:06]}  Nf7+ {[%clk 0:00:18]} 55. Kf6 {[%clk 0:01:03]}  Nh6 {[%clk 0:00:18]} 56. Ke5 {[%clk 0:01:03]}  Ng4+ {[%clk 0:00:18]} 57. Kd5 {[%clk 0:01:03]}  Nf2 {[%clk 0:00:18]} 58. Kd4 {[%clk 0:00:59]}  Nd1 {[%clk 0:00:17]} 59. Kd5 {[%clk 0:00:55]}  Nb2 {[%clk 0:00:17]} 60. Kd4 {[%clk 0:00:53]}  Kd7 {[%clk 0:00:16]} 61. c6+ {[%clk 0:00:49]}  bxc6 {[%clk 0:00:15]} 62. bxc6+ {[%clk 0:00:50]}  Kxc6 {[%clk 0:00:15]} 1/2-1/2


[Site "https://www.chess.com"]

[Event "Titled Tuesday Blitz October 11 Late 2022"]
[White "Vrbljanac, Aleksandar"]
[Black "Zhigalko, Sergei"]
[WhiteFideId "932817"]
[BlackFideId "13502956"]
[WhiteElo "2309"]
[BlackElo "2662"]
[Result "1/2-1/2"]
[Round "02"]
[TimeControl "180+1"]
[Date "2022.10.12"]
[WhiteClock "0:00:12"]
[BlackClock "0:00:08"]

1. e4 {[%clk 0:03:00]}  c5 {[%clk 0:02:59]} 2. Nf3 {[%clk 0:02:53]}  Nc6 {[%clk 0:02:59]} 3. Bb5 {[%clk 0:02:52]}  Nf6 {[%clk 0:02:59]} 4. Bxc6 {[%clk 0:02:51]}  dxc6 {[%clk 0:02:59]} 5. d3 {[%clk 0:02:48]}  Bg4 {[%clk 0:03:00]} 6. h3 {[%clk 0:02:46]}  Bh5 {[%clk 0:02:59]} 7. Nc3 {[%clk 0:02:46]}  Qc7 {[%clk 0:02:58]} 8. Be3 {[%clk 0:02:46]}  Nd7 {[%clk 0:02:57]} 9. g4 {[%clk 0:02:39]}  Bg6 {[%clk 0:02:57]} 10. Qd2 {[%clk 0:02:40]}  e6 {[%clk 0:02:51]} 11. O-O-O {[%clk 0:02:36]}  Be7 {[%clk 0:02:50]} 12. Ne2 {[%clk 0:02:28]}  c4 {[%clk 0:02:47]} 13. Nf4 {[%clk 0:01:51]}  cxd3 {[%clk 0:02:45]} 14. Qxd3 {[%clk 0:01:48]}  Nc5 {[%clk 0:02:13]} 15. Bxc5 {[%clk 0:01:46]}  Qxf4+ {[%clk 0:02:07]} 16. Be3 {[%clk 0:01:24]}  Qxf3 {[%clk 0:01:47]} 17. Qd7+ {[%clk 0:01:24]}  Kf8 {[%clk 0:01:47]} 18. Qxb7 {[%clk 0:01:23]}  Re8 {[%clk 0:01:24]} 19. e5 {[%clk 0:01:01]}  f6 {[%clk 0:01:03]} 20. Rhe1 {[%clk 0:00:52]}  fxe5 {[%clk 0:00:41]} 21. Rd7 {[%clk 0:00:51]}  Qe4 {[%clk 0:00:25]} 22. Re2 {[%clk 0:00:32]}  Qb4 {[%clk 0:00:10]} 23. Qxa7 {[%clk 0:00:22]}  Qc4 {[%clk 0:00:03]} 24. Red2 {[%clk 0:00:17]}  Qf1+ {[%clk 0:00:02]} 25. Rd1 {[%clk 0:00:17]}  Qc4 {[%clk 0:00:03]} 26. R1d2 {[%clk 0:00:17]}  h6 {[%clk 0:00:02]} 27. Rxe7 {[%clk 0:00:15]}  Rxe7 {[%clk 0:00:03]} 28. Bc5 {[%clk 0:00:16]}  Kg8 {[%clk 0:00:03]} 29. Qxe7 {[%clk 0:00:15]}  Kh7 {[%clk 0:00:03]} 30. b3 {[%clk 0:00:12]}  Qc3 {[%clk 0:00:03]} 31. Re2 {[%clk 0:00:06]}  Qa1+ {[%clk 0:00:03]} 32. Kd2 {[%clk 0:00:06]}  Re8 {[%clk 0:00:02]} 33. Qd6 {[%clk 0:00:05]}  Qxa2 {[%clk 0:00:02]} 34. Ke1 {[%clk 0:00:03]}  Qa5+ {[%clk 0:00:02]} 35. Bb4 {[%clk 0:00:03]}  Qa6 {[%clk 0:00:01]} 36. Qxe5 {[%clk 0:00:02]}  Qb6 {[%clk 0:00:01]} 37. Bc5 {[%clk 0:00:03]}  Qb5 {[%clk 0:00:02]} 38. Bd4 {[%clk 0:00:03]}  Re7 {[%clk 0:00:01]} 39. Qxb5 {[%clk 0:00:03]}  cxb5 {[%clk 0:00:02]} 40. Bc5 {[%clk 0:00:04]}  Rc7 {[%clk 0:00:02]} 41. b4 {[%clk 0:00:05]}  Rc6 {[%clk 0:00:03]} 42. c3 {[%clk 0:00:05]}  Ra6 {[%clk 0:00:03]} 43. Rd2 {[%clk 0:00:05]}  Be4 {[%clk 0:00:03]} 44. Ke2 {[%clk 0:00:05]}  Bd5 {[%clk 0:00:03]} 45. Ke3 {[%clk 0:00:06]}  Ra3 {[%clk 0:00:03]} 46. Kd4 {[%clk 0:00:06]}  Bc4 {[%clk 0:00:03]} 47. f4 {[%clk 0:00:04]}  Ra1 {[%clk 0:00:04]} 48. Ke5 {[%clk 0:00:04]}  Re1+ {[%clk 0:00:04]} 49. Kd6 {[%clk 0:00:05]}  Rf1 {[%clk 0:00:04]} 50. Ke5 {[%clk 0:00:05]}  Re1+ {[%clk 0:00:04]} 51. Kd6 {[%clk 0:00:05]}  Rf1 {[%clk 0:00:04]} 52. Ke5 {[%clk 0:00:06]}  Rf3 {[%clk 0:00:05]} 53. Bd4 {[%clk 0:00:06]}  Rxh3 {[%clk 0:00:05]} 54. f5 {[%clk 0:00:06]}  exf5 {[%clk 0:00:05]} 55. gxf5 {[%clk 0:00:07]}  Kg8 {[%clk 0:00:05]} 56. Rg2 {[%clk 0:00:07]}  Kf7 {[%clk 0:00:05]} 57. Kd6 {[%clk 0:00:08]}  Rd3 {[%clk 0:00:02]} 58. Rxg7+ {[%clk 0:00:08]}  Kf8 {[%clk 0:00:03]} 59. Ra7 {[%clk 0:00:07]}  h5 {[%clk 0:00:03]} 60. Rh7 {[%clk 0:00:06]}  Bf7 {[%clk 0:00:02]} 61. Ke5 {[%clk 0:00:05]}  Kg8 {[%clk 0:00:02]} 62. Rh6 {[%clk 0:00:05]}  Rg3 {[%clk 0:00:02]} 63. Kf6 {[%clk 0:00:04]}  Kf8 {[%clk 0:00:02]} 64. Rh8+ {[%clk 0:00:05]}  Bg8 {[%clk 0:00:02]} 65. Bc5+ {[%clk 0:00:05]}  Ke8 {[%clk 0:00:03]} 66. Rxh5 {[%clk 0:00:05]}  Kd7 {[%clk 0:00:04]} 67. Rh8 {[%clk 0:00:05]}  Kc6 {[%clk 0:00:04]} 68. Bd4 {[%clk 0:00:04]}  Kd5 {[%clk 0:00:04]} 69. Rh5 {[%clk 0:00:04]}  Kc6 {[%clk 0:00:03]} 70. Rg5 {[%clk 0:00:04]}  Rxg5 {[%clk 0:00:04]} 71. Kxg5 {[%clk 0:00:04]}  Kd7 {[%clk 0:00:03]} 72. Kh6 {[%clk 0:00:05]}  Ke8 {[%clk 0:00:03]} 73. Kg7 {[%clk 0:00:06]}  Bc4 {[%clk 0:00:03]} 74. f6 {[%clk 0:00:07]}  Bb3 {[%clk 0:00:04]} 75. Kg6 {[%clk 0:00:07]}  Bc4 {[%clk 0:00:04]} 76. Kf5 {[%clk 0:00:07]}  Kf7 {[%clk 0:00:04]} 77. Ke5 {[%clk 0:00:08]}  Bd3 {[%clk 0:00:04]} 78. Kd6 {[%clk 0:00:08]}  Bc4 {[%clk 0:00:05]} 79. Kc5 {[%clk 0:00:09]}  Bd3 {[%clk 0:00:06]} 80. Kd6 {[%clk 0:00:10]}  Bc4 {[%clk 0:00:07]} 81. Ke5 {[%clk 0:00:10]}  Bb3 {[%clk 0:00:07]} 82. Kf5 {[%clk 0:00:11]}  Bc4 {[%clk 0:00:08]} 83. Ke5 {[%clk 0:00:12]} 1/2-1/2


[Site "https://www.chess.com"]

[Event "Titled Tuesday Blitz October 11 Late 2022"]
[White "Winterberg, Lukas"]
[Black "Izuzquiza Gonzalez, Javier"]
[WhiteFideId "24622702"]
[BlackFideId "3101029"]
[WhiteElo "2349"]
[BlackElo "2034"]
[Result "1-0"]
[Round "02"]
[TimeControl "180+1"]
[Date "2022.10.12"]
[WhiteClock "0:00:08"]
[BlackClock "0:00:06"]

1. Nf3 {[%clk 0:02:59]}  c5 {[%clk 0:02:58]} 2. c4 {[%clk 0:02:56]}  Nc6 {[%clk 0:02:58]} 3. Nc3 {[%clk 0:02:53]}  g6 {[%clk 0:02:57]} 4. e3 {[%clk 0:02:52]}  e5 {[%clk 0:02:54]} 5. d4 {[%clk 0:02:47]}  Bg7 {[%clk 0:02:10]} 6. dxc5 {[%clk 0:02:32]}  Qa5 {[%clk 0:02:07]} 7. Be2 {[%clk 0:02:05]}  Nge7 {[%clk 0:02:05]} 8. O-O {[%clk 0:02:04]}  O-O {[%clk 0:01:58]} 9. Nb5 {[%clk 0:02:00]}  e4 {[%clk 0:01:44]} 10. Nfd4 {[%clk 0:01:48]}  Qb4 {[%clk 0:01:21]} 11. Nb3 {[%clk 0:01:30]}  Ne5 {[%clk 0:01:06]} 12. Nc3 {[%clk 0:01:13]}  Nd3 {[%clk 0:00:19]} 13. a3 {[%clk 0:01:10]}  Qxc4 {[%clk 0:00:18]} 14. Nxe4 {[%clk 0:00:31]}  Qxe4 {[%clk 0:00:16]} 15. Bxd3 {[%clk 0:00:30]}  Qh4 {[%clk 0:00:17]} 16. Nd4 {[%clk 0:00:27]}  Nc6 {[%clk 0:00:16]} 17. Nb5 {[%clk 0:00:24]}  Ne5 {[%clk 0:00:14]} 18. Be2 {[%clk 0:00:23]}  d5 {[%clk 0:00:11]} 19. cxd6 {[%clk 0:00:22]}  Ng4 {[%clk 0:00:12]} 20. h3 {[%clk 0:00:20]}  Nh6 {[%clk 0:00:09]} 21. Nc7 {[%clk 0:00:18]}  Rb8 {[%clk 0:00:09]} 22. Bf3 {[%clk 0:00:16]}  Nf5 {[%clk 0:00:08]} 23. Qd5 {[%clk 0:00:14]}  Bd7 {[%clk 0:00:08]} 24. Qe4 {[%clk 0:00:14]}  Qf6 {[%clk 0:00:06]} 25. Bd2 {[%clk 0:00:13]}  Bc6 {[%clk 0:00:07]} 26. Qf4 {[%clk 0:00:12]}  Rfd8 {[%clk 0:00:06]} 27. Bc3 {[%clk 0:00:12]}  Qxd6 {[%clk 0:00:06]} 28. Qxd6 {[%clk 0:00:12]}  Nxd6 {[%clk 0:00:07]} 29. Bxg7 {[%clk 0:00:12]}  Kxg7 {[%clk 0:00:07]} 30. Rac1 {[%clk 0:00:10]}  Bxf3 {[%clk 0:00:07]} 31. gxf3 {[%clk 0:00:11]}  Nf5 {[%clk 0:00:07]} 32. Nb5 {[%clk 0:00:10]}  Rd2 {[%clk 0:00:07]} 33. b4 {[%clk 0:00:09]}  Ra2 {[%clk 0:00:06]} 34. Rc3 {[%clk 0:00:08]}  a6 {[%clk 0:00:07]} 35. Nd4 {[%clk 0:00:07]}  Nxd4 {[%clk 0:00:07]} 36. exd4 {[%clk 0:00:08]}  Rd8 {[%clk 0:00:07]} 37. Rd1 {[%clk 0:00:08]}  Kf6 {[%clk 0:00:08]} 38. d5 {[%clk 0:00:08]}  Ke5 {[%clk 0:00:08]} 39. d6 {[%clk 0:00:08]}  Rxd6 {[%clk 0:00:08]} 40. Re3+ {[%clk 0:00:08]}  Kf4 {[%clk 0:00:06]} 41. Rxd6 {[%clk 0:00:08]}  Ra1+ {[%clk 0:00:06]} 42. Kg2 {[%clk 0:00:08]} 1-0


[Site "https://www.chess.com"]

[Event "Titled Tuesday Blitz October 11 Late 2022"]
[White "Yuan, Qingyu"]
[Black "Barash, Anton"]
[WhiteFideId "8609772"]
[BlackFideId "30935229"]
[WhiteElo "2359"]
[BlackElo "2284"]
[Result "1-0"]
[Round "02"]
[TimeControl "180+1"]
[Date "2022.10.12"]
[WhiteClock "0:00:12"]
[BlackClock "0:00:04"]

1. d4 {[%clk 0:03:00]}  Nf6 {[%clk 0:02:59]} 2. Bf4 {[%clk 0:02:58]}  g6 {[%clk 0:02:59]} 3. Nf3 {[%clk 0:02:58]}  Bg7 {[%clk 0:02:59]} 4. Nbd2 {[%clk 0:02:58]}  O-O {[%clk 0:03:00]} 5. e4 {[%clk 0:02:58]}  d6 {[%clk 0:03:00]} 6. Be2 {[%clk 0:02:56]}  c5 {[%clk 0:02:59]} 7. dxc5 {[%clk 0:02:53]}  dxc5 {[%clk 0:02:59]} 8. c3 {[%clk 0:02:52]}  Qb6 {[%clk 0:02:55]} 9. Nc4 {[%clk 0:02:51]}  Qd8 {[%clk 0:02:46]} 10. Qc2 {[%clk 0:02:46]}  Bg4 {[%clk 0:02:44]} 11. Rd1 {[%clk 0:02:42]}  Qc8 {[%clk 0:02:44]} 12. h3 {[%clk 0:02:32]}  Be6 {[%clk 0:02:39]} 13. O-O {[%clk 0:02:24]}  Nc6 {[%clk 0:02:38]} 14. a4 {[%clk 0:02:22]}  Rd8 {[%clk 0:02:29]} 15. Ng5 {[%clk 0:02:19]}  Bd7 {[%clk 0:02:19]} 16. Rd2 {[%clk 0:02:01]}  Be8 {[%clk 0:02:19]} 17. e5 {[%clk 0:01:56]}  Nd5 {[%clk 0:02:12]} 18. Bg3 {[%clk 0:01:54]}  Nb6 {[%clk 0:02:12]} 19. e6 {[%clk 0:01:43]}  f5 {[%clk 0:01:50]} 20. Rfd1 {[%clk 0:01:32]}  Rxd2 {[%clk 0:01:48]} 21. Rxd2 {[%clk 0:01:32]}  h6 {[%clk 0:01:46]} 22. Nf3 {[%clk 0:01:29]}  Qxe6 {[%clk 0:01:45]} 23. Nxb6 {[%clk 0:01:17]}  axb6 {[%clk 0:01:46]} 24. b3 {[%clk 0:01:16]}  Kh7 {[%clk 0:01:46]} 25. Bc4 {[%clk 0:01:16]}  Qf6 {[%clk 0:01:40]} 26. Rd3 {[%clk 0:01:06]}  e5 {[%clk 0:01:36]} 27. Bb5 {[%clk 0:00:36]}  f4 {[%clk 0:01:28]} 28. Bh4 {[%clk 0:00:34]}  Qf5 {[%clk 0:01:16]} 29. Qd2 {[%clk 0:00:33]}  g5 {[%clk 0:01:06]} 30. Rd5 {[%clk 0:00:34]}  gxh4 {[%clk 0:00:52]} 31. Bd3 {[%clk 0:00:33]}  Bg6 {[%clk 0:00:42]} 32. Bxf5 {[%clk 0:00:33]}  Bxf5 {[%clk 0:00:43]} 33. Nxh4 {[%clk 0:00:29]}  Be4 {[%clk 0:00:29]} 34. Rd7 {[%clk 0:00:28]}  Rg8 {[%clk 0:00:24]} 35. Qe2 {[%clk 0:00:24]}  Bb1 {[%clk 0:00:19]} 36. Qh5 {[%clk 0:00:23]}  Kh8 {[%clk 0:00:09]} 37. Rxb7 {[%clk 0:00:20]}  Be4 {[%clk 0:00:06]} 38. Ng6+ {[%clk 0:00:18]}  Kh7 {[%clk 0:00:05]} 39. Ne7 {[%clk 0:00:13]}  Nxe7 {[%clk 0:00:05]} 40. Rxe7 {[%clk 0:00:14]}  Kh8 {[%clk 0:00:04]} 41. Kh2 {[%clk 0:00:13]}  Bf8 {[%clk 0:00:04]} 42. Qxe5+ {[%clk 0:00:12]} 1-0


[Site "https://www.chess.com"]